bitfinex/quotes_BTCUSD_20250523
["timestamp","ask_amount","ask_price","bid_price","bid_amount"]
[1748018068260,0.18378974,108820.0,108800.0,0.01838133]
[1748018068492,0.08954556,108820.0,108810.0,0.67216]
[1748018068684,0.22052605,108830.0,108820.0,0.20216845]
[1748018068863,0.29169526,108830.0,108820.0,0.61116862]
[1748018069068,0.29704781,108830.0,108820.0,0.61116862]
[1748018069211,0.0091883,108830.0,108820.0,0.62035793]
[1748018069432,0.01852808,108830.0,108820.0,0.63873596]
[1748018069642,0.02771655,108830.0,108820.0,0.66893596]
[1748018069830,0.00015173,108830.0,108820.0,0.70193596]
[1748018070061,0.00015173,108830.0,108820.0,1.74205796]
[1748018070265,0.00015173,108830.0,108820.0,1.04193596]
[1748018070471,0.21148923,108830.0,108820.0,0.53297922]
[1748018070695,0.22067778,108830.0,108820.0,0.56054683]
[1748018070897,0.21670862,108820.0,108810.0,0.98048663]
[1748018071106,0.02756734,108820.0,108810.0,2.0324566]
[1748018071315,0.02656734,108820.0,108810.0,2.0324566]
[1748018071514,0.03575674,108820.0,108810.0,2.0324566]
[1748018071749,0.03566474,108820.0,108810.0,2.0324566]
[1748018071974,0.03566474,108820.0,108810.0,2.0354566]
[1748018072392,0.01728603,108820.0,108810.0,1.3540566]
[1748018072608,0.00809689,108820.0,108810.0,2.0384166]
[1748018072810,0.02647526,108820.0,108810.0,2.0384166]
[1748018073211,0.03566466,108820.0,108810.0,2.0384166]
[1748018073418,0.32354081,108820.0,108810.0,0.80268]
[1748018073582,0.30625486,108820.0,108810.0,1.08704]
[1748018074182,0.30625486,108820.0,108810.0,1.08404]
[1748018074596,0.30625486,108820.0,108810.0,1.26784663]
[1748018074818,0.21135793,108820.0,108810.0,1.26784663]
[1748018075010,0.21235793,108820.0,108810.0,1.28322703]
[1748018075385,0.20416862,108820.0,108810.0,1.42104]
[1748018075598,0.20416862,108820.0,108810.0,1.61403696]
[1748018076203,0.19497922,108820.0,108810.0,1.61403696]
[1748018076618,0.19497922,108820.0,108810.0,1.62322712]
[1748018076821,0.19497922,108820.0,108810.0,1.61403696]
[1748018077039,0.19497922,108820.0,108810.0,1.47104]
[1748018077449,0.19497922,108820.0,108810.0,1.67322712]
[1748018077662,0.19497922,108820.0,108810.0,1.48023033]
[1748018077888,0.18578974,108820.0,108810.0,1.48023033]
[1748018078099,0.18578974,108820.0,108810.0,1.66403696]
[1748018078330,0.18578974,108820.0,108810.0,1.47104]
[1748018078515,0.18578974,108820.0,108810.0,1.87104]
[1748018078963,0.28987615,108820.0,108810.0,1.5956]
[1748018079213,0.28987615,108820.0,108810.0,1.87104]
[1748018079622,0.28987615,108820.0,108810.0,1.47104]
[1748018080113,0.28987615,108820.0,108810.0,1.6824166]
[1748018080114,0.02956718,108820.0,108810.0,1.6824166]
[1748018080316,0.03875658,108820.0,108810.0,2.0824166]
[1748018080755,0.2307358,108820.0,108810.0,1.79778686]
[1748018080959,0.20316862,108820.0,108810.0,1.18668]
[1748018081176,0.30825503,108820.0,108810.0,1.87104]
[1748018081387,0.30725503,108820.0,108810.0,1.87104]
[1748018081846,0.30825503,108820.0,108810.0,1.87104]
[1748018082895,0.30825503,108820.0,108810.0,1.87096]
[1748018084213,0.30825503,108820.0,108810.0,2.07314712]
[1748018084450,0.29906563,108820.0,108810.0,2.08233719]
[1748018085332,0.28987615,108820.0,108810.0,2.07314712]
[1748018085545,0.28987615,108820.0,108810.0,2.08233719]
[1748018085771,0.02037837,108820.0,108810.0,2.13201692]
[1748018085976,0.05329743,108820.0,108810.0,2.13201692]
[1748018087368,0.04410795,108820.0,108810.0,2.13201692]
[1748018087806,0.05329726,108820.0,108810.0,2.13201692]
[1748018088029,0.002,108820.0,108810.0,2.13201692]
[1748018088272,0.002,108820.0,108810.0,2.16201692]
[1748018089094,0.002,108820.0,108810.0,2.17076328]
[1748018089989,0.00015173,108830.0,108820.0,0.61275717]
[1748018090202,6e-05,108840.0,108830.0,0.55133775]
[1748018090425,6e-05,108840.0,108830.0,0.89033775]
[1748018090655,6e-05,108840.0,108830.0,1.29033775]
[1748018090901,0.21399987,108880.0,108860.0,0.55127951]
[1748018091100,0.22318429,108880.0,108870.0,0.68216]
[1748018091312,0.31323584,108880.0,108870.0,0.68216]
[1748018091540,0.28303584,108880.0,108870.0,0.68216]
[1748018092194,0.29152208,108880.0,108870.0,0.68216]
[1748018092408,0.29152208,108880.0,108870.0,1.02216]
[1748018092615,0.30606293,108880.0,108870.0,1.02216]
[1748018093042,0.36856293,108880.0,108870.0,1.02216]
[1748018093252,0.20743127,108870.0,108860.0,0.40610892]
[1748018093487,0.35947683,108870.0,108860.0,1.0786]
[1748018093690,0.35947683,108870.0,108860.0,1.07856]
[1748018094095,0.36796565,108870.0,108860.0,1.07856]
[1748018094752,0.35947683,108870.0,108860.0,1.07856]
[1748018096856,0.36797573,108870.0,108860.0,1.07856]
[1748018100337,0.36797573,108870.0,108860.0,1.07852]
[1748018100889,0.33647573,108870.0,108860.0,1.07852]
[1748018101104,0.30547573,108870.0,108860.0,1.07852]
[1748018101319,0.99517573,108870.0,108860.0,1.07852]
[1748018102048,0.99517573,108870.0,108860.0,0.39652]
[1748018102258,0.99517573,108870.0,108860.0,1.07852]
[1748018102885,1.05697573,108870.0,108860.0,1.07852]
[1748018103453,1.04779064,108870.0,108860.0,0.40668]
[1748018104727,1.04779064,108870.0,108820.0,0.26869578]
[1748018104728,0.02756465,108830.0,108820.0,0.20396511]
[1748018104962,0.20214954,108830.0,108820.0,0.69298597]
[1748018105150,0.30623595,108830.0,108820.0,0.69298597]
[1748018105392,0.30623595,108830.0,108820.0,0.88596502]
[1748018105634,0.30623595,108830.0,108820.0,1.22596502]
[1748018105829,0.30623595,108830.0,108820.0,1.22468776]
[1748018106067,0.20213114,108840.0,108830.0,0.551338]
[1748018106276,0.20213114,108840.0,108830.0,0.59062605]
[1748018106277,0.01846755,108840.0,108830.0,0.59062605]
[1748018106445,0.22059885,108840.0,108830.0,0.57224987]
[1748018106679,0.02765517,108840.0,108830.0,0.57224987]
[1748018106904,0.02765517,108840.0,108830.0,0.581438]
[1748018107358,0.01846755,108840.0,108830.0,0.59062605]
[1748018107576,9.289e-05,108840.0,108830.0,1.30438605]
[1748018108473,0.00918509,108870.0,108860.0,0.34]
[1748018108703,0.08954556,108880.0,108870.0,0.55125993]
[1748018108930,0.22093024,108880.0,108870.0,0.54207526]
[1748018109130,0.03724161,108880.0,108870.0,0.55125993]
[1748018109334,0.01887319,108880.0,108870.0,0.55125993]
[1748018109551,0.02805736,108880.0,108870.0,0.58405993]
[1748018110804,0.03724161,108880.0,108870.0,0.58405993]
[1748018111812,0.22093083,108880.0,108870.0,0.54207543]
[1748018112034,0.22093083,108880.0,108870.0,0.55126035]
[1748018112257,0.21174692,108880.0,108870.0,0.55126035]
[1748018112481,0.21174692,108880.0,108870.0,0.96962995]
[1748018112740,0.19292587,108850.0,108840.0,0.01098597]
[1748018112921,0.27176672,108850.0,108840.0,0.01098597]
[1748018113149,0.70864735,108850.0,108840.0,0.01098597]
[1748018113367,0.19294359,108840.0,108830.0,0.40664]
[1748018113789,0.28248915,108840.0,108830.0,0.40664]
[1748018114013,0.28248915,108840.0,108830.0,0.79664]
[1748018114451,0.28248915,108840.0,108830.0,0.45664]
[1748018114679,0.28248915,108840.0,108830.0,0.39]
[1748018114904,0.28248915,108840.0,108830.0,1.07196]
[1748018116463,0.28248915,108840.0,108830.0,1.47196]
[1748018116868,0.28248915,108840.0,108830.0,0.79]
[1748018117079,0.28248915,108840.0,108830.0,1.471]
[1748018117751,0.28248915,108840.0,108830.0,0.791]
[1748018117963,0.28248915,108840.0,108830.0,1.47104]
[1748018118877,0.29703,108840.0,108830.0,1.47104]
[1748018128540,0.30621754,108840.0,108830.0,1.65481285]
[1748018128735,0.29703,108840.0,108830.0,1.47104]
[1748018129234,0.8449176,108840.0,108830.0,0.051]
[1748018129462,0.27932754,108810.0,108800.0,0.41570597]
[1748018129661,0.88000386,108810.0,108800.0,0.41570597]
[1748018129875,0.88000386,108810.0,108800.0,0.41579886]
[1748018130113,0.88000386,108810.0,108800.0,0.01107886]
[1748018130303,0.88000386,108810.0,108800.0,9.289e-05]
[1748018130721,0.88100386,108810.0,108800.0,9.289e-05]
[1748018130929,0.88000386,108810.0,108800.0,9.289e-05]
[1748018131140,0.88983852,108810.0,108800.0,9.289e-05]
[1748018131356,0.89283852,108810.0,108800.0,9.289e-05]
[1748018131571,0.95448717,108810.0,108800.0,9.289e-05]
[1748018131779,1.22984717,108810.0,108800.0,9.289e-05]
[1748018131989,0.20759086,108780.0,108770.0,0.34]
[1748018132195,0.29713642,108780.0,108770.0,1.02023173]
[1748018132840,0.29713642,108780.0,108770.0,1.02035173]
[1748018133179,0.29713642,108780.0,108770.0,1.02135173]
[1748018133651,0.29713642,108780.0,108770.0,1.02235173]
[1748018134196,0.29713642,108780.0,108770.0,1.02135173]
[1748018134421,0.29713642,108780.0,108770.0,1.43137286]
[1748018134609,0.29813642,108780.0,108770.0,1.43137286]
[1748018134955,0.29813642,108780.0,108770.0,1.42035173]
[1748018138638,0.29813642,108780.0,108770.0,1.14495173]
[1748018138867,0.29813642,108780.0,108770.0,1.42039173]
[1748018139262,0.29813642,108780.0,108770.0,1.14495173]
[1748018139486,0.29813642,108780.0,108770.0,1.42039173]
[1748018140323,0.10508641,108780.0,108770.0,1.14503173]
[1748018140529,0.02857698,108780.0,108770.0,1.66352606]
[1748018140753,0.22162766,108780.0,108770.0,1.65433295]
[1748018140956,0.2124348,108780.0,108770.0,1.65433295]
[1748018141173,0.02857748,108780.0,108770.0,1.65433295]
[1748018141421,0.03777026,108780.0,108770.0,1.66352606]
[1748018141629,0.0285774,108780.0,108770.0,1.66352606]
[1748018141846,0.0285774,108780.0,108770.0,1.69502606]
[1748018142084,0.04311825,108780.0,108770.0,1.69502606]
[1748018142499,0.05231094,108780.0,108770.0,1.69502606]
[1748018142706,0.04311825,108780.0,108770.0,1.69502606]
[1748018142915,0.05231094,108780.0,108770.0,1.69502606]
[1748018143710,0.06150372,108780.0,108770.0,1.69502606]
[1748018144372,0.23616877,108780.0,108770.0,1.67663958]
[1748018144588,0.21778364,108780.0,108770.0,1.68591312]
[1748018144806,0.21778364,108780.0,108770.0,1.66360657]
[1748018145243,0.21778364,108780.0,108770.0,1.67279994]
[1748018146750,0.20324279,108780.0,108770.0,1.65441312]
[1748018146973,0.20324279,108780.0,108770.0,1.66360649]
[1748018147179,0.20324279,108780.0,108770.0,1.66360657]
[1748018147514,0.21243565,108780.0,108770.0,1.68199322]
[1748018147707,0.21243565,108780.0,108770.0,1.6727996]
[1748018148223,0.21243565,108780.0,108770.0,1.63602596]
[1748018148422,0.21243565,108780.0,108770.0,1.65441312]
[1748018148858,0.21243565,108780.0,108770.0,1.66360649]
[1748018149272,0.21243565,108780.0,108770.0,1.66360657]
[1748018149588,0.21243565,108780.0,108770.0,1.67279994]
[1748018149792,0.21243565,108780.0,108770.0,1.60442596]
[1748018149994,0.20324296,108780.0,108770.0,1.61361958]
[1748018150682,0.20324296,108780.0,108770.0,1.62281312]
[1748018151608,0.20324296,108780.0,108770.0,1.66430649]
[1748018151788,0.20324296,108780.0,108770.0,1.65511312]
[1748018152358,0.001,108780.0,108770.0,1.68269305]
[1748018152577,0.001,108780.0,108770.0,1.71329305]
[1748018154375,0.001,108780.0,108770.0,1.72204897]
[1748018154964,0.001,108780.0,108770.0,2.79181353]
[1748018155839,0.001,108780.0,108770.0,2.8027995]
[1748018156067,0.001,108780.0,108770.0,1.4021925]
[1748018156282,0.001,108780.0,108770.0,1.8206605]
[1748018157359,0.001,108780.0,108770.0,1.83523776]
[1748018157600,0.001,108780.0,108770.0,3.52134076]
[1748018158639,0.001,108780.0,108770.0,3.51035479]
[1748018159355,0.001,108780.0,108770.0,3.51335479]
[1748018159576,0.036763,108800.0,108790.0,0.55141545]
[1748018159779,0.036763,108800.0,108790.0,0.82689545]
[1748018160153,0.036763,108800.0,108790.0,1.22689545]
[1748018160373,0.2577271,108810.0,108800.0,0.2113961]
[1748018160374,0.09765091,108810.0,108800.0,0.2113961]
[1748018160590,0.29069776,108830.0,108800.0,1.32342352]
[1748018160820,0.31576308,108830.0,108820.0,0.53297922]
[1748018160959,0.42892034,108830.0,108820.0,0.92378974]
[1748018161183,0.48110432,108830.0,108820.0,0.4]
[1748018161397,0.86038996,108830.0,108820.0,1.0784]
[1748018161621,0.43427281,108830.0,108820.0,1.0784]
[1748018161833,0.44378531,108830.0,108820.0,1.0784]
[1748018162254,0.44278531,108830.0,108820.0,1.0784]
[1748018162471,0.44678531,108830.0,108820.0,1.0784]
[1748018163082,0.45078531,108830.0,108820.0,1.0784]
[1748018164144,0.37686524,108830.0,108820.0,1.0784]
[1748018164579,0.36835274,108830.0,108820.0,1.0784]
[1748018166040,0.36835274,108830.0,108820.0,1.4184]
[1748018169505,0.36835274,108830.0,108820.0,1.41836]
[1748018171007,0.31424112,108830.0,108820.0,1.62052845]
[1748018171225,0.31424112,108830.0,108820.0,1.62971793]
[1748018171580,0.31424112,108830.0,108820.0,1.62052862]
[1748018171904,0.30505274,108830.0,108820.0,1.61133922]
[1748018173199,0.36765274,108830.0,108820.0,1.41836]
[1748018173431,0.3584641,108830.0,108820.0,1.41836]
[1748018173641,0.3260641,108830.0,108820.0,1.60214974]
[1748018174367,0.3260641,108830.0,108820.0,1.41836]
[1748018174581,0.39738809,108830.0,108820.0,0.74]
[1748018174795,0.39738809,108830.0,108820.0,1.01832]
[1748018175014,0.3592641,108830.0,108820.0,1.01832]
[1748018175227,0.3592641,108830.0,108820.0,1.41832]
[1748018175671,0.21672754,108810.0,108800.0,0.73664]
[1748018175907,0.3062731,108810.0,108800.0,1.41511173]
[1748018176089,0.3062731,108810.0,108800.0,1.81511173]
[1748018176918,0.3072731,108810.0,108800.0,1.81511173]
[1748018177127,0.3082731,108810.0,108800.0,1.81511173]
[1748018178389,0.3082731,108810.0,108800.0,1.53971173]
[1748018178604,0.3082731,108810.0,108800.0,1.81511173]
[1748018179027,0.78522571,108810.0,108800.0,0.00015173]
[1748018179253,0.83102571,108810.0,108800.0,0.00015173]
[1748018179478,0.78181789,108810.0,108800.0,0.00015173]
[1748018179982,0.78181789,108810.0,108800.0,0.27555173]
[1748018180204,0.78833745,108810.0,108800.0,0.27555173]
[1748018180411,0.79433745,108810.0,108800.0,0.27555173]
[1748018180841,0.79433745,108810.0,108800.0,0.00015173]
[1748018181069,0.79433745,108810.0,108800.0,0.27559173]
[1748018181818,0.81186499,108810.0,108800.0,0.27559173]
[1748018182907,0.79433745,108810.0,108800.0,0.27559173]
[1748018183814,0.79433745,108810.0,108800.0,0.00015173]
[1748018184499,1.16908224,108810.0,108800.0,0.00015173]
[1748018185141,1.15908224,108810.0,108800.0,0.00015173]
[1748018185370,1.17908224,108810.0,108800.0,0.00015173]
[1748018185609,1.26860375,108810.0,108800.0,0.00015173]
[1748018185958,0.91896561,108810.0,108800.0,0.00015173]
[1748018186172,0.92396561,108810.0,108800.0,0.00015173]
[1748018186405,1.2887104,108810.0,108800.0,0.00015173]
[1748018186773,1.2897104,108810.0,108800.0,0.00015173]
[1748018187769,1.9051904,108810.0,108800.0,0.00015173]
[1748018189747,1.52018889,108810.0,108800.0,0.00015173]
[1748018189950,1.80570889,108810.0,108800.0,0.00015173]
[1748018190422,1.81570889,108810.0,108800.0,0.00015173]
[1748018190633,1.79570889,108810.0,108800.0,0.00015173]
[1748018191516,1.79670889,108810.0,108800.0,0.00015173]
[1748018191733,1.15674082,108810.0,108800.0,0.00015173]
[1748018191948,1.8862304,108810.0,108800.0,0.00015173]
[1748018193287,1.79216804,108810.0,108800.0,0.00015173]
[1748018193493,1.51664804,108810.0,108800.0,0.00015173]
[1748018193721,1.80670889,108810.0,108800.0,0.00015173]
[1748018194834,1.52118889,108810.0,108800.0,0.00015173]
[1748018195046,1.79670889,108810.0,108800.0,0.00015173]
[1748018195256,1.87771084,108810.0,108800.0,0.00015173]
[1748018195465,1.88617835,108810.0,108800.0,0.00015173]
[1748018195750,1.61065835,108810.0,108800.0,0.00015173]
[1748018195896,1.88621835,108810.0,108800.0,0.00015173]
[1748018196346,1.97440084,108810.0,108800.0,0.00015173]
[1748018196550,1.98286846,108810.0,108800.0,0.00015173]
[1748018197230,1.97440084,108810.0,108800.0,0.00015173]
[1748018197449,1.98286943,108810.0,108800.0,0.00015173]
[1748018201421,1.88621943,108810.0,108800.0,0.00015173]
[1748018202182,1.94132943,108810.0,108800.0,0.00015173]
[1748018203387,0.20762636,108760.0,108750.0,0.3713346]
[1748018203612,0.29717192,108760.0,108750.0,0.77272636]
[1748018203788,0.29717192,108760.0,108750.0,0.83672636]
[1748018204444,0.29717192,108760.0,108750.0,1.23672636]
[1748018204659,0.29717192,108760.0,108750.0,1.23972636]
[1748018204887,0.29717192,108760.0,108750.0,0.89976636]
[1748018205162,0.29717192,108760.0,108750.0,1.17532636]
[1748018205794,0.29717192,108760.0,108750.0,1.17232636]
[1748018206018,0.29717192,108760.0,108750.0,1.17432636]
[1748018206250,0.29717192,108760.0,108750.0,1.17232636]
[1748018206649,0.29717192,108760.0,108750.0,1.17332636]
[1748018207044,0.29717192,108760.0,108750.0,1.17432636]
[1748018209787,0.29182537,108760.0,108750.0,1.71662485]
[1748018210029,0.28263107,108760.0,108750.0,1.7074298]
[1748018210257,0.27343669,108760.0,108750.0,1.51432636]
[1748018210656,0.28797754,108760.0,108750.0,1.51432636]
[1748018211961,0.28797754,108760.0,108750.0,1.6982344]
[1748018212370,0.28797754,108760.0,108750.0,1.51432636]
[1748018213036,0.28797754,108760.0,108750.0,1.6982344]
[1748018213185,0.28797754,108760.0,108750.0,1.51432636]
[1748018213598,0.18387423,108770.0,108750.0,1.51432636]
[1748018213599,0.19841508,108770.0,108760.0,0.58889113]
[1748018213801,0.19841508,108770.0,108760.0,1.2730456]
[1748018213802,0.29180678,108770.0,108760.0,1.2730456]
[1748018214003,0.30634763,108770.0,108760.0,1.2730456]
[1748018214184,0.29180678,108770.0,108760.0,1.68223998]
[1748018214561,0.00919311,108770.0,108760.0,1.70062849]
[1748018214723,0.18385573,108790.0,108780.0,0.0629]
[1748018214950,0.10792891,108790.0,108780.0,1.68839355]
[1748018215153,0.11712034,108790.0,108780.0,1.69528775]
[1748018215406,0.0987369,108790.0,108780.0,2.09528775]
[1748018215568,0.00919083,108800.0,108790.0,0.61369977]
[1748018215774,0.30094149,108800.0,108790.0,0.60450826]
[1748018215985,0.30094149,108800.0,108790.0,0.61369994]
[1748018216133,0.30094149,108800.0,108790.0,1.01369994]
[1748018216345,0.31013266,108800.0,108790.0,1.01369994]
[1748018216545,0.32467351,108800.0,108790.0,1.01369994]
[1748018216773,0.31548293,108800.0,108790.0,1.01369994]
[1748018217002,0.3062921,108800.0,108790.0,1.00450826]
[1748018217191,0.31548277,108800.0,108790.0,1.02389119]
[1748018217447,0.31548319,108800.0,108790.0,0.9963165]
[1748018217660,0.31548319,108800.0,108790.0,1.00550843]
[1748018217864,0.01838175,108800.0,108790.0,1.03281544]
[1748018218175,0.03676334,108800.0,108790.0,1.03281544]
[1748018218576,0.22058686,108800.0,108790.0,1.02362402]
[1748018219106,0.22058686,108800.0,108790.0,1.01443234]
[1748018219313,0.21139636,108800.0,108790.0,1.0236241]
[1748018219532,0.30629202,108800.0,108790.0,0.8031]
[1748018219746,0.30629202,108800.0,108790.0,0.741]
[1748018219969,0.30629202,108800.0,108790.0,1.41576]
[1748018220395,0.30629202,108800.0,108790.0,1.66170042]
[1748018220609,0.30629202,108800.0,108790.0,1.67089244]
[1748018221085,0.29710102,108800.0,108790.0,1.47786]
[1748018221297,0.29710102,108800.0,108790.0,1.66170042]
[1748018221507,0.29710102,108800.0,108790.0,1.67089244]
[1748018222102,0.29710102,108800.0,108790.0,1.68008437]
[1748018222307,0.29710102,108800.0,108790.0,1.47786]
[1748018223097,0.30629185,108800.0,108790.0,1.68008386]
[1748018223316,0.30629185,108800.0,108790.0,1.67089227]
[1748018223531,0.30629185,108800.0,108790.0,1.67089244]
[1748018223747,0.29710102,108800.0,108790.0,1.13786]
[1748018223973,0.28790993,108800.0,108790.0,1.13786]
[1748018224180,0.28790993,108800.0,108790.0,1.33089235]
[1748018224400,0.28790993,108800.0,108790.0,1.3400842]
[1748018224602,0.28790993,108800.0,108790.0,1.32170042]
[1748018224806,0.28790993,108800.0,108790.0,1.13786]
[1748018225019,0.28790993,108800.0,108790.0,1.32170042]
[1748018225197,0.28790993,108800.0,108790.0,1.33089244]
[1748018226264,0.28790993,108800.0,108790.0,1.38089244]
[1748018226688,0.28790993,108800.0,108790.0,1.18782]
[1748018226888,0.28790993,108800.0,108790.0,0.482]
[1748018227097,0.28790993,108800.0,108790.0,1.15668]
[1748018227273,0.28790993,108800.0,108790.0,1.12568]
[1748018227827,0.28790993,108800.0,108790.0,1.15688]
[1748018229427,0.28790993,108800.0,108790.0,1.12568]
[1748018230419,0.28790993,108800.0,108790.0,0.8502]
[1748018230627,0.28790993,108800.0,108790.0,1.12568]
[1748018230834,0.2876816,108800.0,108790.0,1.12568]
[1748018231051,0.2876816,108800.0,108790.0,1.46568]
[1748018231877,0.2876816,108800.0,108790.0,1.1902]
[1748018232101,0.2876816,108800.0,108790.0,1.12568]
[1748018233812,0.2527816,108800.0,108790.0,1.12568]
[1748018236964,0.23824075,108800.0,108790.0,1.18988]
[1748018237165,0.00919041,108800.0,108790.0,1.75048747]
[1748018237389,0.04595375,108800.0,108790.0,1.75048756]
[1748018237554,0.22977803,108800.0,108790.0,1.75048756]
[1748018237765,0.22977803,108800.0,108790.0,1.75048764]
[1748018238004,0.32467394,108800.0,108790.0,1.52957178]
[1748018238203,0.30629219,108800.0,108790.0,1.52957178]
[1748018239027,0.30629219,108800.0,108790.0,1.46537178]
[1748018239869,0.30629219,108800.0,108790.0,0.79069178]
[1748018240077,0.30629219,108800.0,108790.0,1.46341178]
[1748018241267,0.2971011,108800.0,108790.0,1.46341178]
[1748018241919,0.2971011,108800.0,108790.0,1.52731178]
[1748018242584,0.09873648,108800.0,108790.0,1.7111522]
[1748018242838,0.01018965,108810.0,108800.0,0.61439602]
[1748018243013,0.02856971,108810.0,108800.0,0.61439602]
[1748018243171,0.21237634,108810.0,108800.0,0.61439619]
[1748018243367,0.29273225,108810.0,108800.0,0.403]
[1748018243595,0.29273225,108810.0,108800.0,1.47568]
[1748018243806,0.29273225,108810.0,108800.0,1.66869469]
[1748018244638,0.29373225,108810.0,108800.0,1.66869469]
[1748018245090,0.28454235,108810.0,108800.0,1.47568]
[1748018245334,0.28454235,108810.0,108800.0,1.65950352]
[1748018245781,0.28454235,108810.0,108800.0,1.44298]
[1748018246190,0.28454235,108810.0,108800.0,1.63599469]
[1748018246395,0.28454235,108810.0,108800.0,1.44298]
[1748018246644,0.2990832,108810.0,108800.0,0.7703]
[1748018246809,0.2990832,108810.0,108800.0,1.07264]
[1748018249922,0.2990832,108810.0,108800.0,0.7972]
[1748018250134,0.2990832,108810.0,108800.0,1.07264]
[1748018250915,0.72722799,108810.0,108800.0,0.4]
[1748018251118,0.27095537,108800.0,108790.0,0.67264]
[1748018251347,0.72524572,108800.0,108790.0,0.27544]
[1748018251561,0.36050093,108800.0,108790.0,0.67544]
[1748018252150,0.36902503,108800.0,108790.0,0.67583]
[1748018253052,0.36050093,108800.0,108790.0,0.40039]
[1748018253276,0.90610093,108800.0,108790.0,0.00039]
[1748018253490,1.83805504,108800.0,108790.0,0.00039]
[1748018254142,1.85657914,108800.0,108790.0,0.00039]
[1748018254569,1.85857914,108800.0,108790.0,0.00039]
[1748018254769,1.16887914,108800.0,108790.0,0.00039]
[1748018254980,1.56611914,108800.0,108790.0,0.00039]
[1748018255254,1.56511914,108800.0,108790.0,0.00039]
[1748018255576,0.20226105,108770.0,108760.0,0.00015176]
[1748018255757,1.09367969,108770.0,108760.0,0.00015176]
[1748018256400,1.44367969,108770.0,108760.0,0.00015176]
[1748018256857,1.44467969,108770.0,108760.0,0.00015176]
[1748018257663,0.75434746,108770.0,108760.0,0.00015176]
[1748018257863,1.11909225,108770.0,108760.0,0.00015176]
[1748018258020,1.11809225,108770.0,108760.0,0.00015176]
[1748018258206,1.12009225,108770.0,108760.0,0.00015176]
[1748018258398,1.12209225,108770.0,108760.0,0.00015176]
[1748018258603,0.75734746,108770.0,108760.0,0.00015176]
[1748018259586,1.12209225,108770.0,108760.0,0.00015176]
[1748018259801,1.14209225,108770.0,108760.0,0.00015176]
[1748018260170,1.41765225,108770.0,108760.0,0.00015176]
[1748018260593,1.41565225,108770.0,108760.0,0.00015176]
[1748018260802,1.49517376,108770.0,108760.0,0.00015176]
[1748018261006,1.51117376,108770.0,108760.0,0.00015176]
[1748018261223,1.21561376,108770.0,108760.0,0.00015176]
[1748018261424,0.40680661,108770.0,108760.0,0.00015176]
[1748018261635,0.40189061,108770.0,108760.0,0.00015176]
[1748018261888,0.37973146,108770.0,108760.0,0.00015176]
[1748018262124,0.38473146,108770.0,108760.0,0.00015176]
[1748018262245,0.35214746,108770.0,108760.0,0.00015176]
[1748018262459,0.44566897,108770.0,108760.0,0.00015176]
[1748018262668,0.87461376,108770.0,108760.0,0.00015176]
[1748018263139,0.42034746,108770.0,108760.0,0.00015176]
[1748018263338,0.35914746,108770.0,108760.0,0.00015176]
[1748018263758,0.34460661,108770.0,108760.0,0.27575176]
[1748018263916,0.29880661,108770.0,108760.0,0.34175176]
[1748018264317,0.29880661,108770.0,108760.0,0.74175176]
[1748018264527,0.01619303,108770.0,108760.0,1.69006553]
[1748018264731,0.02757985,108770.0,108760.0,1.69006553]
[1748018264929,0.18386978,108790.0,108780.0,0.0651]
[1748018265100,0.27341534,108790.0,108780.0,0.7381]
[1748018265329,0.28795619,108790.0,108780.0,0.7381]
[1748018265537,0.27341534,108790.0,108780.0,0.7381]
[1748018266154,0.27441534,108790.0,108780.0,0.7381]
[1748018266596,0.28895619,108790.0,108780.0,0.76974019]
[1748018267220,0.28995619,108790.0,108780.0,0.76974019]
[1748018268043,0.28995619,108790.0,108780.0,1.16974019]
[1748018268463,0.28995619,108790.0,108780.0,1.13656019]
[1748018268680,0.28995619,108790.0,108780.0,1.16706019]
[1748018271044,0.002,108790.0,108780.0,1.71849508]
[1748018271243,0.01119176,108790.0,108780.0,1.71849508]
[1748018271474,0.01119126,108790.0,108780.0,1.71849508]
[1748018271624,0.20218686,108810.0,108780.0,1.62841751]
[1748018271841,0.20118711,108810.0,108800.0,0.60350544]
[1748018272060,0.20118711,108810.0,108800.0,1.25744352]
[1748018272291,0.19299695,108810.0,108800.0,1.26663452]
[1748018272431,0.19299695,108810.0,108800.0,1.67582544]
[1748018272638,0.19299695,108810.0,108800.0,1.66663452]
[1748018272986,0.19299695,108810.0,108800.0,1.67582544]
[1748018273202,0.19304748,108810.0,108800.0,1.68501627]
[1748018273405,0.02762042,108810.0,108800.0,1.69420685]
[1748018273800,0.21142705,108810.0,108800.0,1.68501627]
[1748018273950,0.21142705,108810.0,108800.0,1.69420702]
[1748018274156,0.02762042,108810.0,108800.0,1.7033976]
[1748018274355,0.02762042,108810.0,108800.0,1.7043976]
[1748018274582,0.02762042,108810.0,108800.0,1.7053976]
[1748018274769,0.21142705,108810.0,108800.0,1.68701627]
[1748018274976,0.22061738,108810.0,108800.0,1.68701627]
[1748018275342,0.22061738,108810.0,108800.0,1.69620702]
[1748018275787,0.02762042,108810.0,108800.0,1.70539768]
[1748018276048,0.02762042,108810.0,108800.0,1.70539726]
[1748018276394,0.22061738,108810.0,108800.0,1.69620668]
[1748018276778,0.22061738,108810.0,108800.0,1.68701602]
[1748018277102,0.22061738,108810.0,108800.0,1.41145602]
[1748018277300,0.22061738,108810.0,108800.0,1.68697602]
[1748018277662,0.21142764,108810.0,108800.0,1.68697602]
[1748018278065,0.2971339,108810.0,108800.0,1.13748]
[1748018278294,0.2971339,108810.0,108800.0,1.41296]
[1748018279427,0.2971339,108810.0,108800.0,0.402]
[1748018279632,0.3592339,108810.0,108800.0,0.67296]
[1748018280246,0.3592339,108810.0,108800.0,1.07296]
[1748018280753,0.3592339,108810.0,108800.0,1.07096]
[1748018280986,0.3602339,108810.0,108800.0,1.07096]
[1748018282433,0.2981339,108810.0,108800.0,1.07096]
[1748018284329,0.09978599,108810.0,108800.0,1.68565602]
[1748018284555,0.12735545,108810.0,108800.0,1.68565619]
[1748018284808,0.12735545,108810.0,108800.0,0.7706]
[1748018284809,0.29813373,108810.0,108800.0,0.7706]
[1748018285034,0.29813373,108810.0,108800.0,0.74]
[1748018285257,0.29813373,108810.0,108800.0,1.41096]
[1748018285484,0.29713373,108810.0,108800.0,1.41196]
[1748018286150,0.29713373,108810.0,108800.0,1.41296]
[1748018286997,0.29713373,108810.0,108800.0,0.402]
[1748018287236,0.36133373,108810.0,108800.0,0.002]
[1748018287415,0.36133373,108810.0,108800.0,0.27748]
[1748018287856,0.02373261,108790.0,108780.0,0.37164019]
[1748018288066,0.12477239,108790.0,108780.0,0.76712019]
[1748018288268,0.12477239,108790.0,108780.0,0.73548]
[1748018288891,0.30861281,108790.0,108780.0,1.16667283]
[1748018289007,0.30631044,108790.0,108780.0,1.44415283]
[1748018289225,0.30631044,108790.0,108780.0,1.47565283]
[1748018289806,0.30631044,108790.0,108780.0,1.65951015]
[1748018290006,0.11327792,108790.0,108780.0,1.71738772]